fUSD/lending_fUSD_20241221
["ID","MTS","AMOUNT","RATE_DAILY","PERIOD"]
[346148779,1734749450826,-5350.87888921,0.00024,5]
[346148780,1734749450837,-643.98437831,0.00024,5]
[346148781,1734749450859,-150.0,0.00023732,2]
[346148782,1734749450868,-150.0,0.00023792,2]
[346148783,1734749450878,-150.0,0.00023977,2]
[346148784,1734749450888,-162.87597103,0.00024,5]
[346148785,1734749450901,-305.0000025,0.00024,5]
[346148786,1734749450913,-4965.55,0.00024,5]
[346148787,1734749450924,-1941.72488886,0.00024,5]
[346148788,1734749450936,-1349.15905,0.00024,5]
[346148789,1734749450947,-2905.38,0.00024,5]
[346148790,1734749450957,-4065.25983176,0.00024,5]
[346148791,1734749450968,-268.57980699,0.00024,5]
[346148792,1734749450980,-1395.21924163,0.00024,5]
[346148793,1734749450991,-382.1801399,0.00024,5]
[346148794,1734749451149,-243.6,0.00023644,2]
[346148795,1734749451158,-69.05249985,0.00023737,2]
[346148796,1734749451170,-80.94750015,0.00023737,2]
[346148797,1734749451179,-150.0,0.00023754,2]
[346148798,1734749451189,-148.55250485,0.00023774,2]
[346148799,1734749451200,-1.44749515,0.00023774,2]
[346148800,1734749451209,-150.0,0.00023784,2]
[346148801,1734749451218,-150.0,0.00023802,2]
[346148802,1734749451227,-150.0,0.00023808,2]
[346148803,1734749451237,-150.0,0.00023817,2]
[346148804,1734749451246,-153.0,0.00023829,2]
[346148805,1734749451256,-150.0,0.00023832,2]
[346148806,1734749451265,-150.0,0.00023832,2]
[346148807,1734749451275,-150.0,0.00023843,2]
[346148808,1734749451284,-150.0,0.00023846,2]
[346148809,1734749451293,-150.0,0.00023874,2]
[346148810,1734749451302,-150.0,0.00023875,2]
[346148811,1734749451311,-150.0,0.00023879,2]
[346148812,1734749451321,-150.0,0.00023885,2]
[346148813,1734749451330,-150.0,0.00023886,2]
[346148814,1734749451339,-150.0,0.00023893,2]
[346148815,1734749451348,-150.0,0.00023904,2]
[346148816,1734749451357,-150.0,0.00023906,2]
[346148817,1734749451367,-150.0,0.00023926,2]
[346148818,1734749451377,-150.0,0.00023931,2]
[346148819,1734749451386,-150.0,0.00023943,2]
[346148820,1734749451396,-150.0,0.0002395,2]
[346148821,1734749451406,-150.0,0.0002395,2]
[346148822,1734749451416,-150.0,0.00023955,2]
[346148823,1734749451425,-150.0,0.0002396,2]
[346148824,1734749451435,-150.0,0.00023982,2]
[346148825,1734749451444,-109235.12385345,0.00024,5]
[346148826,1734749451456,-2288.40477197,0.00024,5]
[346148827,1734749451486,-150.0,0.0002373,2]
[346148828,1734749451495,-150.0,0.00023735,2]
[346148829,1734749451504,-150.0,0.00023739,2]
[346148830,1734749451513,-64.4420814,0.00023832,2]
[346148831,1734749451524,-85.5579186,0.00023832,2]
[346148832,1734749451534,-150.0,0.00023976,2]
[346148833,1734749451543,-2377.69140931,0.00024,5]
[346148834,1734749451554,-1711.87058023,0.00024,5]
[346148835,1734749451566,-6130.3895022,0.00024,5]
[346148836,1734749451577,-1787.661048,0.00024,5]
[346148837,1734749451589,-16083.3999978,0.00024,5]
[346148838,1734749451600,-913.15698188,0.00024,5]
[346148839,1734749451612,-744.79128,0.00024,5]
[346148840,1734749451669,-385.0,0.00022,2]
[346148841,1734749451678,-385.0,0.00022192,2]
[346148842,1734749451688,-150.0,0.00023783,2]
[346148843,1734749451697,-150.0,0.00023831,2]
[346148844,1734749451706,-150.0,0.00023842,2]
[346148845,1734749451716,-150.0,0.00023853,2]
[346148846,1734749451725,-150.0,0.00023889,2]
[346148847,1734749451738,-150.0,0.00023942,2]
[346148848,1734749451747,-150.0,0.00023948,2]
[346148849,1734749451756,-150.0,0.00023969,2]
[346148850,1734749451766,-4862.33097609,0.00024,5]
[346148851,1734749451778,-180413.75030856,0.00024,5]
[346148852,1734749451789,-192342.00395788,0.00024,5]
[346148853,1734749451799,-35157.00000075,0.00024,5]
[346148854,1734749451811,-7178.54694628,0.00024,5]
[346148855,1734749451823,-357.69115569,0.00024,5]
[346148856,1734749451833,-7858.73569701,0.00024,5]
[346148857,1734749451845,-3622.53010337,0.00024,5]
[346148858,1734749451863,-385.0,0.00022466,2]
[346148859,1734749451872,-345.27883011,0.00024,5]
[346148860,1734749451884,-195501.81436656,0.00024,5]
[346148861,1734749451896,-8190.0,0.00024,5]
[346148862,1734749451908,-359207.44795702,0.00024,5]
[346148863,1734749451919,-576.70999178,0.00024,5]
[346148864,1734749451930,-1104.89183922,0.00024,5]
[346148865,1734749451942,-18627.36015014,0.00024,5]
[346148866,1734749451953,-4085.72514336,0.00024,5]
[346148867,1734749451964,-1559.8574844,0.00024,5]
[346148887,1734750134600,162.44,0.00022495,30]
[346148894,1734750229866,154.92,0.00010137,2]
[346148896,1734750237077,203729.26764442,0.000225,120]
[346148897,1734750288957,150.0,0.000225,120]
[346149011,1734750632851,-378.98345466,0.00019098,2]
[346149014,1734750638886,-2069.21586565,0.00019098,2]
[346149015,1734750638896,-666.0,0.00019197,2]
[346149016,1734750638906,-150.0,0.00019197,2]
[346149017,1734750638915,-150.0,0.00019197,2]
[346149018,1734750638925,-246.71643495,0.00019197,2]
[346149019,1734750638934,-151132.04742074,0.00019197,2]
[346149020,1734750639218,-113226.78237453,0.00019197,2]
[346149022,1734750639228,-1091971.2964984,0.00019197,3]
[346149024,1734750639237,-5299.89654662,0.00019197,2]
[346149025,1734750639246,-6030.6540554,0.00019197,3]
[346149027,1734750639255,-23181023.77105705,0.00019198,2]
[346149030,1734750640773,-3120.16226952,0.00019198,2]
[346149031,1734750640785,-5091.82413923,0.00019198,2]
[346149032,1734750643639,-604.799997,0.00019198,2]
[346149034,1734750643867,-978.79830355,0.00019198,2]
[346149037,1734750646673,-500.0,0.00019197,2]
[346149038,1734750646683,-128.69987289,0.00019197,2]
[346149039,1734750646695,-371.30012711,0.00019197,2]
[346149040,1734750646704,-350.6601365,0.00019197,2]
[346149041,1734750646714,-50306.09692341,0.00019198,2]
[346149042,1734750646927,-383.5086327,0.00019198,2]
[346149105,1734750816941,23084.37874261,0.000225,30]
[346149108,1734751010522,159.21,0.00018101,30]
[346149110,1734751093020,230.22,0.00010137,2]
[346149705,1734751831916,-158.25142474,0.00013599,3]
[346149707,1734751831925,-221.43863965,0.00013599,2]
[346149709,1734751831935,-800.0,0.00013699,2]
[346149711,1734751831944,-544.0773635,0.00013699,2]
[346149720,1734751832441,-255.9226365,0.00013699,2]
[346149721,1734751832450,-800.0,0.00013699,2]
[346149722,1734751832460,-800.0,0.00013699,2]
[346149723,1734751832472,-800.0,0.00013699,2]
[346149724,1734751832482,-676.13,0.00013699,2]
[346149725,1734751832635,-800.0,0.00013699,2]
[346149727,1734751832650,-800.0,0.00013699,2]
[346149729,1734751832661,-800.0,0.00013699,2]
[346149730,1734751832670,-800.0,0.00013699,2]
[346149732,1734751832679,-466.24,0.00013699,2]
[346149734,1734751832688,-152.71,0.00013699,2]
[346149736,1734751832697,-283.57644786,0.000157,2]
[346149737,1734751832706,-976.86,0.00015858,2]
[346149738,1734751832715,-186.8,0.00016712,2]
[346149739,1734751832725,-230.22,0.00016813,2]
[346149740,1734751832734,-250.0,0.00017127,2]
[346149741,1734751832743,-250.0,0.00017147,2]
[346149742,1734751832753,-309.47,0.00017186,2]
[346149743,1734751832762,-565.11,0.00017213,2]
[346149744,1734751832771,-502.0,0.00017233,2]
[346149745,1734751832780,-819.73,0.00017258,2]
[346149746,1734751832790,-150.0,0.0001726,2]
[346149747,1734751832799,-150.0,0.0001726,2]
[346149748,1734751832808,-150.0,0.0001726,2]
[346149749,1734751832817,-150.0,0.0001726,2]
[346149750,1734751832826,-531.88,0.00017288,2]
[346149751,1734751832836,-150.0,0.00017317,2]
[346149752,1734751832845,-9155.0,0.0001736,2]
[346149753,1734751832854,-150.0,0.00017373,2]
[346149754,1734751832863,-150.0,0.00017373,2]
[346149755,1734751832872,-150.0,0.00017429,2]
[346149756,1734751832882,-150.0,0.00017486,2]
[346149757,1734751832890,-150.0,0.00017486,2]
[346149758,1734751832899,-150.0,0.000175,2]
[346149759,1734751832909,-1526.83,0.00017514,2]
[346149760,1734751832920,-150.0,0.00017528,2]
[346149761,1734751832929,-150.0,0.00017542,2]
[346149762,1734751832939,-1000.0,0.00017578,2]
[346149763,1734751832949,-2751.0,0.00017597,2]
[346149764,1734751832959,-915.45462686,0.00017598,2]
[346149765,1734751832968,-150.0,0.00017599,2]
[346149766,1734751832978,-150.0,0.00017599,2]
[346149767,1734751832988,-23900.0,0.00017599,2]
[346149768,1734751832998,-2183.32,0.00017613,2]
[346149769,1734751833007,-200.0,0.00017623,2]
[346149770,1734751833016,-186.33,0.00017632,2]
[346149771,1734751833026,-1029.9671,0.00017644,2]
[346149772,1734751833036,-150.0,0.00017655,2]
[346149773,1734751833045,-1500.0,0.00017679,2]
[346149774,1734751833054,-150.0,0.00017712,2]
[346149775,1734751833063,-150.0,0.00017712,2]
[346149776,1734751833073,-716.74,0.00017737,2]
[346149777,1734751833082,-150.0,0.0001774,2]
[346149778,1734751833092,-150.0,0.00017768,2]
[346149779,1734751833101,-300.0,0.00017777,2]
[346149780,1734751833110,-150.0,0.00017824,2]
[346149781,1734751833119,-150.0,0.00017824,2]
[346149782,1734751833128,-158.91,0.00017832,2]
[346149783,1734751833138,-168.56,0.00017846,2]
[346149784,1734751833147,-2580.82,0.00017848,2]
[346149785,1734751833157,-150.0,0.00017881,2]
[346149786,1734751833167,-800.0,0.000179,6]
[346149787,1734751833176,-200.0,0.00017908,2]
[346149788,1734751833185,-158.91,0.00017921,2]
[346149789,1734751833195,-250.0,0.00017935,2]
[346149790,1734751833204,-150.0,0.00017937,2]
[346149791,1734751833213,-150.0,0.00017937,2]
[346149792,1734751833222,-303.307209,0.00017969,2]
[346149793,1734751833231,-150.0,0.00017979,2]
[346149794,1734751833241,-131.56034877,0.00017994,2]
[346149796,1734751838126,-18.43965123,0.00017994,2]
[346149797,1734751838136,-1600.0,0.00018,6]
[346149798,1734751838146,-150.0,0.0001805,2]
[346149799,1734751838156,-150.0,0.0001805,2]
[346149800,1734751838167,-371.43200485,0.00018093,2]
[346149801,1734751838177,-2500.0,0.000181,6]
[346149802,1734751838187,-150.0,0.00018106,2]
[346149803,1734751838197,-800.0,0.0001811,2]
[346149804,1734751838206,-976.86,0.00018122,2]
[346149805,1734751838216,-531.88,0.00018152,2]
[346149806,1734751838225,-1290.53,0.00018155,2]
[346149807,1734751838235,-150.0,0.00018163,2]
[346149808,1734751838244,-150.0,0.00018163,2]
[346149809,1734751838254,-207.0,0.0001818,2]
[346149810,1734751838264,-3300.0,0.000182,6]
[346149811,1734751838274,-150.0,0.00018219,2]
[346149812,1734751838285,-150.0,0.00018219,2]
[346149813,1734751838294,-150.0,0.00018276,2]
[346149814,1734751838303,-150.0,0.00018276,2]
[346149815,1734751838313,-4200.0,0.000183,6]
[346149816,1734751838322,-150.0,0.00018332,2]
[346149817,1734751838332,-11573.75,0.00018356,2]
[346149818,1734751838341,-371.43200485,0.00018379,2]
[346149819,1734751838351,-150.0,0.00018388,2]
[346149820,1734751838361,-150.0,0.00018388,2]
[346149821,1734751838371,-800.0,0.000184,6]
[346149822,1734751838380,-150.0,0.00018445,2]
[346149823,1734751838390,-150.0,0.00018459,2]
[346149824,1734751838399,-152.71,0.00018493,2]
[346149825,1734751838410,-800.0,0.000185,6]
[346149826,1734751838420,-150.0,0.00018501,2]
[346149827,1734751838429,-150.0,0.00018501,2]
[346149828,1734751838438,-150.0,0.00018558,2]
[346149829,1734751838448,-207.0,0.0001857,2]
[346149830,1734751838458,-800.0,0.000186,6]
[346149831,1734751838470,-150.0,0.00018614,2]
[346149832,1734751838479,-150.0,0.00018614,2]
[346149833,1734751838489,-150.0,0.0001867,2]
[346149834,1734751838499,-270.22509123,0.00018697,2]
[346149835,1734751838509,-150.0,0.00018699,2]
[346149836,1734751838519,-800.0,0.000187,6]
[346149837,1734751838528,-150.0,0.00018727,2]
[346149838,1734751838538,-150.0,0.00018727,2]
[346149839,1734751838548,-150.0,0.00018783,2]
[346149840,1734751838558,-151.0,0.00018797,2]
[346149841,1734751838567,-1260.0,0.000188,6]
[346149842,1734751838576,-150.0,0.0001884,2]
[346149843,1734751838586,-150.0,0.0001884,2]
[346149844,1734751838595,-371.43200485,0.00018869,2]
[346149845,1734751838605,-150.0,0.00018896,2]
[346149846,1734751838614,-150.0,0.00018938,2]
[346149847,1734751838624,-150.0,0.00018952,2]
[346149848,1734751838634,-150.0,0.00018952,2]
[346149849,1734751838643,-207.0,0.0001896,2]
[346149850,1734751838652,-150.0,0.00019009,2]
[346149851,1734751838663,-531.88,0.00019017,2]
[346149852,1734751838672,-150.0,0.00019065,2]
[346149853,1734751838681,-150.0,0.00019065,2]
[346149854,1734751838691,-7146.38968483,0.00019097,2]
[346149855,1734751838701,-5772.89574292,0.00019097,2]
[346149856,1734751838710,-7146.38968482,0.00019097,2]
[346149857,1734751838720,-5772.89574292,0.00019097,2]
[346149858,1734751838730,-7146.38968482,0.00019097,2]
[346149859,1734751838739,-5772.89574292,0.00019097,2]
[346149860,1734751838748,-7146.38968482,0.00019097,2]
[346149861,1734751838758,-5772.89574292,0.00019097,2]
[346149862,1734751838768,-7146.38968482,0.00019097,2]
[346149863,1734751838777,-5772.89574292,0.00019097,2]
[346149864,1734751838787,-7146.38968482,0.00019098,2]
[346149865,1734751838797,-5772.89574292,0.00019098,2]
[346149866,1734751838807,-7146.38968482,0.00019098,2]
[346149867,1734751838816,-5772.89574292,0.00019098,2]
[346149868,1734751838825,-7146.38968482,0.00019098,2]
[346149869,1734751838835,-5772.89574292,0.00019098,2]
[346149870,1734751838844,-7146.38968482,0.00019098,2]
[346149871,1734751838854,-5772.89574292,0.00019098,2]
[346149872,1734751838864,-162.77036397,0.00019098,2]
[346149873,1734751838874,-1167.36728241,0.00019098,2]
[346149874,1734751838884,-7146.38968482,0.00019098,2]
[346149875,1734751838893,-5772.89574292,0.00019098,2]
[346149876,1734751838903,-11156.18646406,0.00019098,2]
[346149877,1734751838912,-512.49765602,0.00019098,3]
[346149878,1734751838922,-362.28663634,0.00019098,2]
[346149879,1734751838931,-2758.13825922,0.00019098,2]
[346149880,1734751838941,-12860.25387332,0.00019098,2]
[346149881,1734751838950,-371.43200487,0.00019104,2]
[346149882,1734751838960,-150.0,0.00019122,2]
[346149883,1734751838970,-164.0359544,0.00019173,2]
[346149884,1734751838979,-502.91161031,0.00019173,2]
[346149885,1734751838989,-500.0,0.00019173,2]
[346149886,1734751838998,-500.83205175,0.00019173,2]
[346149887,1734751839010,-501.98031706,0.00019173,2]
[346149888,1734751839019,-161.35768013,0.00019173,2]
[346149889,1734751839029,-503.90518727,0.00019173,2]
[346149890,1734751839039,-500.0,0.00019173,2]
[346149891,1734751839048,-633.84029075,0.00019173,2]
[346149892,1734751839059,-6426.10166863,0.00019177,2]
[346149893,1734751839067,-7000.0,0.00019177,2]
[346149894,1734751839078,-165.28049735,0.00019178,4]
[346149895,1734751839092,-156.13391142,0.00019178,4]
[346149896,1734751839101,-157.90306412,0.00019178,4]
[346149897,1734751839111,-151.57198495,0.00019178,4]
[346149898,1734751839120,-1392.33432447,0.00019178,2]
[346149899,1734751839179,-41008.66567553,0.00019178,2]
[346149900,1734751839188,-32221.0,0.00019178,2]
[346149901,1734751839198,-166.17239451,0.0001918,2]
[346149902,1734751839207,-166.17,0.0001918,2]
[346149903,1734751839217,-166.17239451,0.0001918,2]
[346149904,1734751839227,-166.17239451,0.0001918,2]
[346149905,1734751839236,-166.17,0.0001918,2]
[346149906,1734751839246,-165.37,0.00019187,2]
[346149907,1734751839255,-337.70237439,0.00019187,2]
[346149908,1734751839264,-337.70237439,0.00019188,2]
[346149909,1734751839274,-337.70237439,0.00019188,2]
[346149910,1734751839283,-3668.09097301,0.00019196,2]
[346149911,1734751839292,-666.0,0.00019197,2]
[346149912,1734751839302,-666.0,0.00019197,2]
[346149913,1734751839312,-666.0,0.00019197,2]
[346149914,1734751839321,-51110.0,0.00019197,2]
[346149915,1734751839331,-500.0,0.00019197,2]
[346149916,1734751839340,-150.0,0.00019197,2]
[346149917,1734751839349,-150.0,0.00019197,2]
[346149918,1734751839358,-150.0,0.00019197,2]
[346149919,1734751839368,-150.0,0.00019197,2]
[346149920,1734751839377,-150.0,0.00019197,2]
[346149921,1734751839386,-150.0,0.00019197,2]
[346149922,1734751839396,-150.0,0.00019197,2]
[346149923,1734751839405,-150.0,0.00019197,2]
[346149924,1734751839417,-150.0,0.00019197,2]
[346149925,1734751839426,-150.0,0.00019197,2]
[346149926,1734751839435,-1437938.56979771,0.00019197,3]
[346149927,1734751839444,-9954.76355513,0.00019197,2]
[346149928,1734751839453,-9045.9810831,0.00019197,3]
[346149929,1734751839463,-32420694.70853382,0.00019198,2]
[346149930,1734751839478,-2783.25281939,0.00019198,2]
[346149931,1734751840015,-166.12416458,0.00019078,2]
[346149932,1734751840025,-6428.6988731,0.00019198,2]
[346149933,1734751840038,-378.00863982,0.00019198,2]
[346149934,1734751840297,-1862.85592438,0.00019198,2]
[346149982,1734751842940,-752.14935416,0.00019097,2]
[346149983,1734751842950,-316.49662385,0.00019173,2]
[346149984,1734751842962,-183.50337615,0.00019173,2]
[346149985,1734751842972,-2415.94161885,0.00019198,2]
[346149986,1734751842984,-4049.1615056,0.00019198,2]
[346149987,1734751842995,-501.05350463,0.00019198,2]
[346149988,1734751843090,-8055.6,0.00019198,2]
[346149989,1734751843102,-403.97201656,0.00019198,2]
[346149990,1734751843114,-3851.88067639,0.00019198,2]
[346149992,1734751846091,-166.12416457,0.00019098,2]
[346149993,1734751846101,-351224.18845443,0.00019198,2]
[346149994,1734751957353,1463.21639748,0.000225,30]
[346149996,1734752316806,158.05,0.00010137,2]
[346149998,1734752413752,160.73,0.00018369,30]
[346150007,1734752684572,425.77,0.00013,7]
[346150171,1734753032367,-450.0,0.00013,2]
[346150172,1734753032377,-24.0,0.00013699,2]
[346150173,1734753032686,-128.71,0.00013699,2]
[346150176,1734753032696,-301.53377552,0.00015,2]
[346150178,1734753032707,-198.46622448,0.00015,2]
[346150180,1734753032717,-125.07777552,0.00016051,2]
[346150206,1734753038079,-905.47222448,0.00016051,2]
[346150207,1734753038089,-4193.13497499,0.00016591,2]
[346150208,1734753038100,-17646.08524229,0.00016591,2]
[346150209,1734753038112,-8903.68414409,0.00016591,2]
[346150210,1734753038123,-9641.01563863,0.00016591,2]
[346150211,1734753038132,-550.0,0.00017,2]
[346150212,1734753038141,-150.0,0.0001726,2]
[346150213,1734753038151,-150.0,0.0001726,2]
[346150214,1734753038162,-152.18890255,0.0001726,2]
[346150215,1734753038171,-151.46528506,0.0001726,2]
[346150216,1734753038180,-150.0,0.0001726,2]
[346150217,1734753038190,-150.6279261,0.0001726,2]
[346150218,1734753038200,-150.9465813,0.0001726,2]
[346150219,1734753038209,-150.79737689,0.0001726,2]
[346150220,1734753038218,-152.84881608,0.0001726,2]
[346150221,1734753038228,-260.88664739,0.0001726,2]
[346150222,1734753038237,-150.0,0.0001726,2]
[346150223,1734753038247,-200.0,0.00017343,2]
[346150224,1734753038257,-150.0,0.00017356,2]
[346150225,1734753038267,-155.78,0.00017432,2]
[346150226,1734753038275,-155.78,0.0001745,2]
[346150227,1734753038285,-150.0,0.00017452,2]
[346150228,1734753038294,-150.0,0.00017452,2]
[346150229,1734753038305,-155.78,0.00017467,2]
[346150231,1734753038317,-2000.0,0.0001747,2]
[346150233,1734753038332,-155.78,0.00017485,2]
[346150235,1734753038343,-456.46,0.00017487,2]
[346150237,1734753038352,-155.78,0.00017502,2]
[346150239,1734753038362,-200.0,0.00017514,2]
[346150241,1734753038371,-155.78,0.0001752,2]
[346150243,1734753038381,-150.0,0.00017534,2]
[346150245,1734753038390,-150.0,0.00017548,2]
[346150247,1734753038400,-150.0,0.00017553,2]
[346150249,1734753038410,-150.0,0.00017644,2]
[346150251,1734753038419,-150.0,0.00017644,2]
[346150253,1734753038429,-150.0,0.0001774,2]
[346150255,1734753038439,-1500.0,0.00017749,2]
[346150257,1734753038449,-150.0,0.00017808,2]
[346150259,1734753038458,-150.0,0.00017836,2]
[346150261,1734753038467,-150.0,0.00017836,2]
[346150263,1734753038477,-250.0,0.00017875,2]
[346150265,1734753038486,-150.0,0.0001789,2]
[346150267,1734753038495,-1352.42,0.00017906,2]
[346150269,1734753038504,-150.0,0.00017932,2]
[346150271,1734753038514,-600.0,0.00018,2]
[346150273,1734753038523,-150.0,0.00018027,2]
[346150275,1734753038533,-150.0,0.00018027,2]
[346150277,1734753038542,-165.65,0.0001806,2]
[346150279,1734753038551,-360.79,0.00018077,2]
[346150281,1734753038561,-150.0,0.00018082,2]
[346150283,1734753038570,-150.0,0.00018123,2]
[346150285,1734753038580,-1000.0,0.00018192,2]
[346150287,1734753038589,-2690.541826,0.00018218,2]
[346150295,1734753038656,-60.458174,0.00018218,2]
[346150297,1734753038667,-150.0,0.00018219,2]
[346150299,1734753038676,-150.0,0.00018219,2]
[346150301,1734753038685,-150.0,0.00018219,2]
[346150303,1734753038694,-250.0,0.00018286,2]
[346150305,1734753038703,-150.0,0.00018315,2]
[346150307,1734753038713,-1030.55,0.00018315,2]
[346150309,1734753038723,-150.0,0.00018356,2]
[346150311,1734753038733,-23900.0,0.00018357,2]
[346150312,1734753038744,-150.0,0.00018411,2]
[346150313,1734753038754,-150.0,0.00018411,2]
[346150314,1734753038764,-165.45,0.00018438,2]
[346150315,1734753038773,-150.0,0.00018507,2]
[346150316,1734753038782,-150.0,0.00018603,2]
[346150317,1734753038791,-150.0,0.00018603,2]
[346150318,1734753038800,-150.0,0.0001863,2]
[346150319,1734753038810,-150.0,0.00018699,2]
[346150320,1734753038822,-150.0,0.00018795,2]
[346150322,1734753038831,-150.0,0.00018795,2]
[346150324,1734753038841,-150.0,0.0001889,2]
[346150325,1734753038851,-150.0,0.00018904,2]
[346150328,1734753038861,-5035.291,0.00018932,2]
[346150330,1734753038870,-262.223,0.00018932,2]
[346150331,1734753038879,-500.0,0.00018932,2]
[346150333,1734753038888,-360.79,0.00018981,2]
[346150334,1734753038898,-150.0,0.00018986,2]
[346150335,1734753038908,-150.0,0.00018986,2]
[346150336,1734753038918,-600.0,0.00019,2]
[346150337,1734753038926,-384.86828337,0.00019073,2]
[346150338,1734753038936,-150.0,0.00019082,2]
[346150339,1734753038945,-1236.40397241,0.00019098,2]
[346150340,1734753038955,-15635.19156436,0.00019098,2]
[346150341,1734753038965,-12458.82535725,0.00019098,2]
[346150342,1734753038975,-256.24882803,0.00019098,3]
[346150343,1734753038987,-558.65186032,0.00019098,2]
[346150344,1734753038996,-1176.85250933,0.00019098,2]
[346150345,1734753039006,-26431.99418833,0.000191,2]
[346150346,1734753039016,-156.76,0.0001914,2]
[346150347,1734753039025,-500.0,0.00019173,2]
[346150348,1734753039035,-500.0,0.00019173,2]
[346150349,1734753039044,-500.0,0.00019173,2]
[346150350,1734753039053,-242.00828036,0.00019178,4]
[346150351,1734753039065,-184.65485042,0.00019178,4]
[346150352,1734753039073,-150.0,0.00019178,4]
[346150353,1734753039082,-154.32405715,0.00019178,4]
[346150354,1734753039091,-221.56248508,0.0001918,2]
[346150355,1734753039101,-221.56,0.0001918,2]
[346150356,1734753039110,-150.0733485,0.00019197,2]
[346150357,1734753039120,-514.40777698,0.00019197,2]
[346150358,1734753039130,-150.0,0.00019197,2]
[346150359,1734753039140,-561.23,0.00019197,2]
[346150360,1734753039150,-4977.38177757,0.00019197,2]
[346150361,1734753039159,-12851351.34600744,0.00019198,2]
[346150362,1734753040560,-1104.51663127,0.00019198,2]
[346150363,1734753040581,-1745.2,0.00019198,2]
[346150364,1734753040593,-1181.43300001,0.00019198,2]
[346150365,1734753040604,-268.13583273,0.00019198,2]
[346150366,1734753040820,-2631.01595791,0.00019198,2]
[346150367,1734753040832,-313.94567625,0.00019198,2]
[346150385,1734753043153,-592.91798798,0.00019198,2]
[346150386,1734753043164,-6815.47,0.00019198,2]
[346150387,1734753043177,-487.152116,0.00019198,2]
[346150399,1734753046374,-377722.14652058,0.00019198,2]
[346150400,1734753046385,-2351.63147196,0.00019198,2]
[346150407,1734753347366,212.976806,0.000216,30]
[346150408,1734753355058,154.92,0.00010137,2]
[346150411,1734753454120,163.79,0.00019208,30]
[346150444,1734754232006,-152.71,0.00013699,2]
[346150445,1734754232016,-994.75,0.00016709,2]
[346150446,1734754232027,-686.31497959,0.0001802,2]
[346150447,1734754232040,-1663.28286315,0.0001802,2]
[346150448,1734754232061,-3030.9263894,0.0001802,2]
[346150449,1734754232112,-1535.79576675,0.0001802,2]
[346150450,1734754232123,-6069.03915115,0.0001802,2]
[346150458,1734754237911,-7240.21721996,0.0001802,2]
[346150459,1734754237922,-544.38170658,0.0001802,2]
[346150460,1734754237934,-852.99136144,0.0001802,2]
[346150461,1734754237945,-2277.05056198,0.0001802,2]
[346150462,1734754237955,-250.0,0.0001803,2]
[346150463,1734754238117,-1290.86,0.00018035,2]
[346150464,1734754238126,-2229.43,0.00018564,2]
[346150465,1734754238137,-398.36,0.00018594,2]
[346150466,1734754238147,-200.0,0.00018594,2]
[346150467,1734754238157,-2000.0,0.00018602,2]
[346150468,1734754238167,-518.06,0.00018606,2]
[346150469,1734754238176,-474.38,0.00018923,2]
[346150470,1734754238185,-367.85953187,0.00018928,2]
[346150471,1734754238222,-106.52046813,0.00018928,2]
[346150472,1734754238231,-474.38,0.00018933,2]
[346150473,1734754238244,-474.38,0.00018938,2]
[346150474,1734754238255,-474.38,0.00018943,2]
[346150475,1734754238264,-250.0,0.00018943,2]
[346150476,1734754238274,-474.38,0.00018948,2]
[346150477,1734754238284,-474.38,0.00018953,2]
[346150478,1734754238293,-474.38,0.00018958,2]